Cogmind - Beta 11 @@@ ROGUE MODE // 2022.03.24 @ 20:27:34 Player: omewwes Result: Destroyed by P-80 Master with Gamma Rifle Performance ------------- Evolutions (9) 4500 Regions Visited (23) 4600 Robots Destroyed (251) 1255 Value Destroyed (9863) 9863 Prototype IDs (47) 940 Alien Tech Used (0) 0 Bonus (6033) 6033 TOTAL SCORE: 27191 Bonus ------- High Alert Combat Kills 1366 Follower Combat Kills 879 Entered Garrisons 1000 Used RIF Installer 2500 Entered DSFs 500 Aligned with FarCom 300 Met Zhirov 300 Read Decrypted Archives 300 Friendly Fire -1112 Cogmind --------- Core Integrity 0/1600 Matter 285/300 Energy 98/100 System Corruption 4% Temperature Cool (0) Movement Core (50) Location -1/Access Parts ------- > --- POWER (1) -------- (None) > --- PROPULSION (8) --- (None) > --- UTILITY (13) ----- (None) > --- WEAPON (3) ------- (None) > --- INVENTORY (5) ---- Experimental Thermal Generator Improved Weapon Cycler Cloaking Device Magnetic Acceleration Cannon Advanced Remote Datajack Peak State ------------ > --- POWER ------------ Particle Reactor > --- PROPULSION ------- Field Propulsion Drive Field Propulsion Array Field Propulsion Array Impulse Thruster Array > --- UTILITY ---------- Advanced Power Amplifier Advanced Power Amplifier Advanced Power Amplifier Experimental Thermal Generator Improved Salvage Targeting Computer Improved Salvage Targeting Computer Advanced ECM Suite Cloaking Device Utility Shielding Utility Shielding > --- WEAPON ----------- Magnetic Acceleration Cannon Hardcell Cannon > --- INVENTORY -------- Improved Weapon Cycler Cloaking Device Magnetic Acceleration Cannon Advanced Remote Datajack [Rating: 121] Favorites ----------- Power Improved Deuterium Engine Engine Improved Deuterium Engine Power Core Light Fission Core Reactor Quantum Reactor Propulsion Potential Leg Treads Improved Treads Leg Potential Leg Hover Unit Antigrav System Flight Unit Field Propulsion Array Utility Advanced Heat Sink Device Advanced Heat Sink Storage Medium Storage Unit Processor Advanced Targeting Computer Hackware Hacking Suite Protection Hardened Medium Armor Plating Weapon KE Penetrator Energy Gun EM Pulse Gun Energy Cannon Heavy Particle Cannon Ballistic Gun KE Penetrator Ballistic Cannon Enhanced Gauss Cannon Launcher Improved Grenade Launcher Special Weapon Remote Datajack Build | -11 -10 -10 -10 -9 -8 -8 -8 -8 -7 -7 -7 -7 -6 -5 -5 -5 -5 -4 -4 -3 -2 -2 -1 ------- Run | Scr Mat Min Exi Min Mat Gar Mat Gar Fac Gar Fac Gar Fac Fac Ext Cet Arc Fac DSF Res Res Gar Acc Slots Evolved 18 | . . . . . 4 . . . 2 . . . 2 2 . . . 2 . 2 2 . 2 Power . | . . . . . . . . . . . . . . . . . . . . . . . . Propulsion 6 | . . . . . 1 . . . . . . . 1 . . . . 1 . 2 1 . . Utility 11 | . . . . . 3 . . . 2 . . . 1 1 . . . 1 . . 1 . 2 Weapon 1 | . . . . . . . . . . . . . . 1 . . . . . . . . . Parts Attached 290 | 6 2 2 2 3 30 10 19 5 2 19 9 20 51 4 58 11 6 10 13 8 . . . Power 23 | 1 . . . . 3 1 1 . . 2 1 2 4 . 4 1 1 1 . 1 . . . Engine 11 | 1 . . . . 3 1 1 . . 2 1 2 . . . . . . . . . . . Core 9 | . . . . . . . . . . . . . 3 . 4 . 1 1 . . . . . Reactor 3 | . . . . . . . . . . . . . 1 . . 1 . . . 1 . . . Propulsion 53 | 2 . . 2 . 3 3 3 . . 3 1 2 8 1 15 2 1 3 3 1 . . . Treads 19 | . . . . . 1 . . . . . . . . . 14 2 1 1 . . . . . Leg 27 | 2 . . 2 . 2 3 3 . . 3 1 2 8 . 1 . . . . . . . . Wheel . | . . . . . . . . . . . . . . . . . . . . . . . . Hover 1 | . . . . . . . . . . . . . . 1 . . . . . . . . . Flight 6 | . . . . . . . . . . . . . . . . . . 2 3 1 . . . Utility 108 | 1 1 . . 1 19 4 4 1 1 7 5 8 15 3 18 5 . 4 9 2 . . . Device 55 | . . . . 1 10 2 . . . 3 1 4 9 2 12 . . 2 7 2 . . . Storage 12 | 1 1 . . . 3 . 1 . 1 . 2 . . . 2 1 . . . . . . . Processor 6 | . . . . . 1 1 . . . 1 . . 1 . . . . 2 . . . . . Hackware 10 | . . . . . 2 . . . . 1 . 3 3 . . 1 . . . . . . . Protection 25 | . . . . . 3 1 3 1 . 2 2 1 2 1 4 3 . . 2 . . . . Artifact . | . . . . . . . . . . . . . . . . . . . . . . . . Weapon 106 | 2 1 2 . 2 5 2 11 4 1 7 2 8 24 . 21 3 4 2 1 4 . . . Energy Gun 20 | 2 . . . 1 1 1 6 . . . . . 6 . 2 . 1 . . . . . . Energy Cannon 14 | . 1 1 . . 3 . . . . . . 4 5 . . . . . . . . . . Ballistic Gun 30 | . . . . . . . 4 2 1 4 . . . . 15 2 2 . . . . . . Ballistic Cannon 14 | . . . . . . . . . . 2 1 1 5 . . . . . 1 4 . . . Launcher 16 | . . 1 . 1 1 1 1 2 . 1 . 1 3 . 3 1 . . . . . . . Special Weapon 12 | . . . . . . . . . . . 1 2 5 . 1 . 1 2 . . . . . Impact Weapon . | . . . . . . . . . . . . . . . . . . . . . . . . Slashing Weapon . | . . . . . . . . . . . . . . . . . . . . . . . . Piercing Weapon . | . . . . . . . . . . . . . . . . . . . . . . . . Special Melee Weapon . | . . . . . . . . . . . . . . . . . . . . . . . . Unidentified Prototypes 8 | . . . . . . . 3 . 1 . . . . . . 3 . . . 1 . . . Corrupted Parts 2 | . . . . . . . . . . . . . 2 . . . . . . . . . . System Corruption 11 | . . . . . . . . . . . . . 11 . . . . . . . . . . Parts Lost 82 | . . . . . 1 6 1 1 . 2 . 2 18 . 14 11 11 . 6 3 1 5 . Power 11 | . . . . . . 1 1 . . . . 1 2 . 2 1 1 . 1 1 . . . Propulsion 21 | . . . . . 1 1 . . . . . . 6 . 4 3 2 . . 1 . 3 . Utility 32 | . . . . . . 4 . 1 . 2 . 1 5 . 6 4 3 . 3 . 1 2 . Weapon 18 | . . . . . . . . . . . . . 5 . 2 3 5 . 2 1 . . . Highest Loss Streak 10 | . . . . . 1 4 1 1 . 1 . 1 5 . 5 8 10 . 6 3 1 6 . To Critical Strikes 4 | . . . . . . . . . . . . . . . 1 2 1 . . . . . . Average Slot Usage (%) 88 | . 90 100 100 85 98 96 99 96 90 97 99 96 88 11 92 92 46 39 67 75 56 18 . Engine 5 | . 14 14 14 14 9 9 8 9 7 7 7 6 . . . . . . . . . . . Core 1 | . . . . . . . . . . . . . 4 . 4 . 1 4 4 . . . . Treads 4 | . . . . . 3 . . . . . . . . . 21 17 5 2 1 . . . . Leg 16 | . 28 28 28 28 21 24 27 27 23 23 23 22 19 . . . . . . . . . . Device 21 | . . . . . 23 21 15 9 7 12 24 29 21 5 39 26 6 5 28 25 21 6 . Storage 9 | . 19 28 28 14 10 9 9 9 13 15 8 7 5 . 4 10 8 . . . . . . Processor 3 | . . . . . 1 6 9 9 7 10 7 1 3 . . . . 8 10 9 8 3 . Hackware 2 | . . . . . . . . . . 2 7 3 12 . . 2 4 . . . . . . Protection 5 | . . . . . 8 6 11 15 15 8 3 7 3 2 2 10 6 . . 9 8 3 . Energy Gun 2 | . 25 14 14 14 1 3 6 . . . . . 4 . . . . . . . . . . Energy Cannon 4 | . 2 13 14 1 16 14 1 . . . . 10 4 . . . . . . . . . . Ballistic Gun 5 | . . . . . . . 9 15 15 10 . . . . 14 16 3 . . . . . . Ballistic Cannon 2 | . . . . . . . . . . 4 14 4 2 . . . . . . 7 4 . . Naked Turns 558 | . . . . . . . . . . . . . 6 46 . . 34 5 . . . 22 445 Heaviest Build 67 | 11 14 14 14 15 53 54 46 41 40 49 43 49 48 10 55 67 55 10 22 52 23 22 . Greatest Support 133 | 20 20 20 60 60 75 75 77 75 75 75 52 52 70 11 106 133 103 30 38 53 38 23 3 Greatest Overweight (x) 2 | . . . . . . . . . . . . 1 1 . 2 . 1 . 1 . . . . Average Overweight (x) . | . . . . . . . . . . . . . . . . . . . . . . . . Largest Inventory Capacity 15 | 8 8 8 8 8 15 15 15 10 10 10 10 10 10 5 10 10 10 5 5 5 5 5 5 Average Capacity 10 | 7 8 8 8 8 14 15 14 10 10 10 10 10 9 5 9 10 8 5 5 5 5 5 5 Most Carried 15 | . 2 3 5 7 15 13 15 10 10 10 10 10 10 5 10 10 8 3 5 5 5 5 5 Average Carried 8 | . 1 2 3 5 11 9 13 10 10 8 9 9 8 3 8 9 5 2 3 3 5 5 5 Final Capacity 15 | 8 8 8 8 8 15 15 10 10 10 10 10 10 5 5 10 10 5 5 5 5 5 5 5 Final Carried 13 | . 2 3 3 6 13 10 10 10 10 8 10 10 5 2 10 8 2 3 5 5 5 5 5 Class Distribution -------------------- 48% | Mutant 31% | Scavenger-Mutant 13% | Scavenger-Skirmisher 3% | Scavenger-Tank Dominant Class ---------------- Mutant | -10/Materials Mutant | -10/Mines Mutant | -10/Exiles Mutant | -9/Mines Mutant | -8/Materials Mutant | -8/Garrison Mutant | -8/Materials Mutant | -8/Garrison Mutant | -7/Factory Scavenger-Mutant | -7/Garrison Scavenger-Mutant | -7/Factory Scavenger-Mutant | -7/Garrison Scavenger-Mutant | -6/Factory Mutant | -5/Factory Scavenger-Skirmisher | -5/Extension Scavenger-Tank | -5/Cetus Scavenger-Mutant | -5/Archives Scout | -4/Factory Scout | -4/DSF Infiltrator-Sprinter | -3/Research Infiltrator-Mutant | -2/Research Mutant | -2/Garrison Mutant | -1/Access Resources | -11 -10 -10 -10 -9 -8 -8 -8 -8 -7 -7 -7 -7 -6 -5 -5 -5 -5 -4 -4 -3 -2 -2 -1 ----------- Run | Scr Mat Min Exi Min Mat Gar Mat Gar Fac Gar Fac Gar Fac Fac Ext Cet Arc Fac DSF Res Res Gar Acc Matter Collected 7158 | 149 121 70 . 20 357 115 612 303 174 798 63 856 885 . 1937 414 . 30 15 4 74 . 161 Remotely . | . . . . . . . . . . . . . . . . . . . . . . . . Salvage Created 9429 | . . 9 . . 1377 490 1223 331 . 807 93 484 1519 . 2238 607 195 30 . 3 . . 23 Parts 504 | . . 2 . . 70 25 71 28 . 51 6 23 73 . 107 26 9 5 . 2 . . 6 Haulers Intercepted 10 | . . . . . 4 . 5 . . . . . . . 1 . . . . . . . . Recyclers Shooed 8 | . . . . . 1 . . . . . . . 4 . 3 . . . . . . . . Parts Field Recycled . | . . . . . . . . . . . . . . . . . . . . . . . . Retrieved Matter . | . . . . . . . . . . . . . . . . . . . . . . . . Parts Self-Destructed . | . . . . . . . . . . . . . . . . . . . . . . . . Prevented . | . . . . . . . . . . . . . . . . . . . . . . . . Kills | -11 -10 -10 -10 -9 -8 -8 -8 -8 -7 -7 -7 -7 -6 -5 -5 -5 -5 -4 -4 -3 -2 -2 -1 ------- Run | Scr Mat Min Exi Min Mat Gar Mat Gar Fac Gar Fac Gar Fac Fac Ext Cet Arc Fac DSF Res Res Gar Acc Combat Hostiles Destroyed 197 | . . 3 . . 22 11 15 19 . 20 1 15 33 . 37 15 6 . . . . . . Melee 2 | . . . . . . . . . . . . 1 . . 1 . . . . . . . . Guns 77 | . . . . . . . 11 5 . 16 . . 3 . 30 10 2 . . . . . . Cannons 52 | . . . . . 17 5 . . . 1 1 13 15 . . . . . . . . . . AOE 62 | . . 3 . . 4 5 3 14 . 3 . 1 14 . 6 5 4 . . . . . . Classes Destroyed 20 | . . 1 . . 8 2 2 . . 2 1 1 2 . 1 . . . . . . . . Worker 12 | . . . . . 1 . 5 . . . . . 4 . 1 . . . . 1 . . . Builder 9 | . . . . . . . 2 . . . . . 2 . 4 . . . . . . . 1 Tunneler 2 | . . . . . . . 1 . . . . . . . . . . 1 . . . . . Hauler 10 | . . . . . 4 . 5 . . . . . . . 1 . . . . . . . . Recycler 6 | . . . . . 1 . 2 . . . . . 2 . 1 . . . . . . . . Carrier 1 | . . . . . . . . . . 1 . . . . . . . . . . . . . Operator 1 | . . . . . . . . . . . 1 . . . . . . . . . . . . Watcher 8 | . . . . . 5 . 1 . . . . . . . 1 1 . . . . . . . Swarmer 64 | . . 3 . . 4 . 3 12 . 8 . 5 7 . 13 9 . . . . . . . Cutter 2 | . . . . . . . . . . . . 2 . . . . . . . . . . . Saboteur 2 | . . . . . . . . . . . . . 1 . 1 . . . . . . . . Grunt 77 | . . . . . 12 5 7 5 . 7 2 4 17 . 12 2 4 . . . . . . Brawler 7 | . . . . . 2 1 . . . 1 1 . 1 . 1 . . . . . . . . Duelist 4 | . . . . . . 1 . 1 . . . . 2 . . . . . . . . . . Protector 1 | . . . . . . . . . . . . . 1 . . . . . . . . . . Sentry 23 | . . . . . 3 3 2 . . 2 . 4 2 . 5 . 2 . . . . . . Hunter 9 | . . . . . . 1 3 1 . . . . 1 . 3 . . . . . . . . Programmer 4 | . . . . . . . . . . 2 . 1 1 . . . . . . . . . . Heavy 1 | . . . . . 1 . . . . . . . . . . . . . . . . . . Behemoth 2 | . . . . . . . . . . . . . . . 2 . . . . . . . . Cetus Guard 4 | . . . . . . . . . . . . . . . . 4 . . . . . . . Savage 1 | . . . . . . . . . . . . . . . 1 . . . . . . . . Butcher 1 | . . . . . . . . . . . . . . . . 1 . . . . . . . Best Kill Streak 10 | . . 3 . . 4 9 7 8 . 7 1 4 10 . 7 5 4 1 . 1 . . 1 Combat Bots Only 9 | . . 3 . . 4 9 3 8 . 6 1 4 8 . 7 5 4 . . . . . . Max Kills in Single Turn 4 | . . 2 . . 2 3 2 4 . 2 2 1 4 . 4 3 2 1 . 1 . . 1 Gunslinging 1 | . . . . . . . . . . . . . 1 . 1 1 . . . . . . . Exploded 4 | . . 2 . . 2 3 1 4 . 2 . 1 3 . 4 3 2 . . . . . . Melee 1 | . . . . . . . . . . . . 1 . . 1 . . . . . . . . Uniques/NPCs Destroyed . | . . . . . . . . . . . . . . . . . . . . . . . . Combat | -11 -10 -10 -10 -9 -8 -8 -8 -8 -7 -7 -7 -7 -6 -5 -5 -5 -5 -4 -4 -3 -2 -2 -1 -------- Run | Scr Mat Min Exi Min Mat Gar Mat Gar Fac Gar Fac Gar Fac Fac Ext Cet Arc Fac DSF Res Res Gar Acc Damage Taken 19247 | . 12 93 . . 1135 1013 612 295 . 1074 36 876 2907 140 3174 2371 1342 . 470 921 71 1098 1607 Core 4389 | . . 7 . . 140 138 82 27 . 103 . 121 278 94 321 221 221 . 104 181 . 744 1607 Absorbed by Shields 83 | . . . . . . . . . . . . . 16 . . . . . . . . 67 . Redirected to Shielding 307 | . . . . . . 108 51 55 . 9 . 16 . . . . . . . 21 6 41 . Core Remaining (%) 66 | 100 . . . 97 . . . 29 . . . 68 67 . . . 14 . 90 86 . 48 . Volleys Fired 668 | . 3 4 . . 95 22 83 29 . 71 13 63 99 . 124 43 17 1 . 1 . . . Largest 3 | . 2 1 . . 2 2 2 2 . 2 2 2 2 . 3 3 2 2 . 1 . . . Hottest 150 | . 80 30 . . 150 150 130 56 . 114 114 130 130 . 139 101 75 40 . 65 . . . Shots Fired 1317 | . 6 4 . . 185 41 162 42 . 138 18 108 152 . 330 109 19 2 . 1 . . . Gun 773 | . 6 . . . 1 3 147 32 . 126 . . 23 . 316 107 12 . . . . . . Cannon 448 | . . . . . 181 35 11 . . 8 13 92 107 . . . . . . 1 . . . Launcher 46 | . . 4 . . 3 3 4 10 . 4 . 1 9 . 2 2 4 . . . . . . Special 50 | . . . . . . . . . . . 5 15 13 . 12 . 3 2 . . . . . Kinetic 797 | . . . . . . . 108 32 . 134 13 49 42 . 302 107 9 . . 1 . . . Thermal 385 | . 3 . . . 181 35 39 . . . . 43 65 . 14 . 3 2 . . . . . Explosive 46 | . . 4 . . 3 3 4 10 . 4 . 1 9 . 2 2 4 . . . . . . Electromagnetic 41 | . 3 . . . 1 3 11 . . . . . 23 . . . . . . . . . . Robot Hit Streak 31 | . 1 3 . . 10 14 12 6 . 9 4 9 24 . 31 7 8 4 . 5 . . . Robot Miss Streak 7 | . 3 4 . . 4 2 5 1 . 3 2 7 4 . 5 3 1 . . . . . . Penetration Max 1 | . . . . . . . 1 1 . 1 . . 1 . 1 1 . . . . . . . Secondary Targets 14 | . . . . . . . 1 1 . 1 . . 1 . 8 2 . . . . . . . Max Gunslinging Chain 2 | . . . . . . . 1 1 . 1 . . 1 . 2 1 . . . . . . . Shots Hit Robots 832 | . 1 3 . . 112 31 106 24 . 87 8 60 102 . 221 59 16 1 . 1 . . . Core Hits 437 | . . 3 . 1 47 18 42 25 . 41 3 19 76 . 101 34 22 1 . 1 . . 3 Critical Kills 6 | . . . . . . 1 1 . . 2 . . . . 2 . . . . . . . . Critical Parts Destroyed 19 | . . . . . . . 3 . . 4 . . . . 10 2 . . . . . . . Critical Strikes 52 | . . . . . . 2 4 . . 8 1 9 9 . 16 3 . . . . . . . Burn 2 | . . . . . . . . . . . . . . . 2 . . . . . . . . Meltdown 2 | . . . . . . 1 1 . . . . . . . . . . . . . . . . Destroy 27 | . . . . . . . 3 . . 7 . . . . 14 3 . . . . . . . Blast 20 | . . . . . . . . . . 1 1 9 9 . . . . . . . . . . Corrupt 1 | . . . . . . 1 . . . . . . . . . . . . . . . . . Melee Attacks . | . . . . . . . . . . . . . . . . . . . . . . . . Impact . | . . . . . . . . . . . . . . . . . . . . . . . . Slashing . | . . . . . . . . . . . . . . . . . . . . . . . . Piercing . | . . . . . . . . . . . . . . . . . . . . . . . . Sneak Attacks . | . . . . . . . . . . . . . . . . . . . . . . . . Combat Hostiles . | . . . . . . . . . . . . . . . . . . . . . . . . Follow-up Attacks . | . . . . . . . . . . . . . . . . . . . . . . . . Damage Inflicted 28178 | . 15 255 . 8 3181 1143 2219 1705 . 2169 695 1602 5718 . 6017 2242 1116 17 . 37 . . 39 Guns 11978 | . 15 . . . . 41 1799 412 . 1733 . . 425 . 5545 1777 231 . . . . . . Cannons 8280 | . . . . . 2914 720 225 . . 213 160 1500 2511 . . . . . . 37 . . . Explosions 7786 | . . 255 . . 267 382 195 1293 . 223 535 74 2742 . 470 465 885 . . . . . . Melee . | . . . . . . . . . . . . . . . . . . . . . . . . Ramming 117 | . . . . 8 . . . . . . . 28 40 . 2 . . . . . . . 39 Kinetic 13328 | . . . . . . . 1376 412 . 1946 160 881 1277 . 5298 1777 164 . . 37 . . . Thermal 8011 | . . . . . 2914 720 501 . . . 535 619 2391 . 247 . 67 17 . . . . . Explosive 6052 | . . 255 . . 225 382 195 1293 . 223 . 74 1585 . 470 465 885 . . . . . . Electromagnetic 670 | . 15 . . . 42 41 147 . . . . . 425 . . . . . . . . . . Impact . | . . . . . . . . . . . . . . . . . . . . . . . . Slashing . | . . . . . . . . . . . . . . . . . . . . . . . . Piercing . | . . . . . . . . . . . . . . . . . . . . . . . . Highest Corruption 11 | . . . . . . . . . . 3 3 1 11 . . 8 8 . . 1 . . 4 Average Corruption 2 | . . . . . . . . . . 1 2 1 9 . . 8 8 . . 1 . . 3 Corruption Purged 3 | . . . . . . . . . . . 3 . . . . . . . . . . . . Corruption Blocked . | . . . . . . . . . . . . . . . . . . . . . . . . Effects 39 | . . . . . . . . . . 8 6 7 11 . . . 4 . . . . . 3 Message Errors 11 | . . . . . . . . . . 3 1 3 3 . . . 1 . . . . . . Matter Fused 11 | . . . . . . . . . . 4 1 3 1 . . . . . . . . . 2 Heat Flow Errors 1 | . . . . . . . . . . . 1 . . . . . . . . . . . . Energy Discharges 5 | . . . . . . . . . . 1 1 1 1 . . . 1 . . . . . . Parts Rejected 1 | . . . . . . . . . . . . . 1 . . . . . . . . . . Data Loss (minor) 2 | . . . . . . . . . . . . . 1 . . . 1 . . . . . . Data Loss (major) 3 | . . . . . . . . . . . 1 . 1 . . . 1 . . . . . . Misfires 1 | . . . . . . . . . . . 1 . . . . . . . . . . . . Alerts 2 | . . . . . . . . . . . . . 1 . . . . . . . . . 1 Misdirections 1 | . . . . . . . . . . . . . 1 . . . . . . . . . . Weapon Failures 1 | . . . . . . . . . . . . . 1 . . . . . . . . . . Overload Shots . | . . . . . . . . . . . . . . . . . . . . . . . . Overflow Damage 478 | . . 23 . . 43 . 10 66 . 9 72 31 148 . 34 42 . . . . . . . Projectiles 105 | . . . . . 43 . 10 . . . . 31 21 . . . . . . . . . . Explosions 373 | . . 23 . . . . . 66 . 9 72 . 127 . 34 42 . . . . . . . Melee . | . . . . . . . . . . . . . . . . . . . . . . . . Knockbacks 14 | . . . . . . . . . . . 1 6 6 . . . . . . . . . 1 Impact 2 | . . . . . . . . . . . . . 1 . . . . . . . . . 1 Kinetic 11 | . . . . . . . . . . . 1 6 4 . . . . . . . . . . Secondary 1 | . . . . . . . . . . . . . 1 . . . . . . . . . . Self-Inflicted Damage 393 | . . 50 . . 34 7 . 8 . 82 . . 193 . . . . . . . . . 19 Shots 11 | . . 3 . . 1 1 . 1 . 2 . . 3 . . . . . . . . . . Rammed 6 | . . . . . . . . . . . . . . . 1 . . . . . . . 5 Targets Rammed 18 | . . . . 1 . . . . . . . 7 4 . 1 . . . . . . . 5 Kicked 12 | . . . . 1 . . . . . . . 7 4 . . . . . . . . . . Crushed . | . . . . . . . . . . . . . . . . . . . . . . . . Highest Temperature 268 | . 36 . . . 204 232 41 40 . 20 99 48 268 . 149 . 4 . . . . . . Average Temperature 45 | . 18 . . . 45 92 10 19 . 5 26 14 83 . 77 . 4 . . . . . . Received Heat Transfer 3287 | . 6 . . . 450 450 252 72 . 240 18 201 758 36 543 126 108 . . 9 . 9 9 Siege Activations . | . . . . . . . . . . . . . . . . . . . . . . . . Robots Corrupted 1 | . . . . . . . . . . . . . 1 . . . . . . . . . . Combat Hostiles 1 | . . . . . . . . . . . . . 1 . . . . . . . . . . Parts Fried 1 | . . . . . . . . . . . . . . . . . 1 . . . . . . Impact Corruptions . | . . . . . . . . . . . . . . . . . . . . . . . . Robots Melted 3 | . . . . . 1 1 1 . . . . . . . . . . . . . . . . Combat Hostiles 3 | . . . . . 1 1 1 . . . . . . . . . . . . . . . . Parts Melted 23 | . . . . . 11 2 1 . . . . 2 5 . 1 . . 1 . . . . . Heat Transferred 10504 | . . . . . 4292 916 888 . . . 250 851 2565 . 555 . 150 37 . . . . . Parts Sabotaged . | . . . . . . . . . . . . . . . . . . . . . . . . Parts Stolen . | . . . . . . . . . . . . . . . . . . . . . . . . Parts Stripped . | . . . . . . . . . . . . . . . . . . . . . . . . Power Chain Reactions . | . . . . . . . . . . . . . . . . . . . . . . . . Missiles Intercepted . | . . . . . . . . . . . . . . . . . . . . . . . . Alert | -11 -10 -10 -10 -9 -8 -8 -8 -8 -7 -7 -7 -7 -6 -5 -5 -5 -5 -4 -4 -3 -2 -2 -1 ------- Run | Scr Mat Min Exi Min Mat Gar Mat Gar Fac Gar Fac Gar Fac Fac Ext Cet Arc Fac DSF Res Res Gar Acc Peak Influence 863 | . 30 129 . . 451 648 642 863 452 796 445 580 848 400 817 576 250 81 56 190 107 72 88 Initial 456 | . . 11 . . . 285 315 385 452 316 417 123 304 360 196 456 164 59 56 4 95 72 12 Average 349 | . 15 107 . . 206 492 469 698 452 627 333 389 574 378 238 457 183 73 41 44 97 44 40 Maximum Alert Level 3 | . . . . . 2 2 2 3 2 3 2 2 3 2 3 2 1 . . . . . . Low Security (%) 33 | 100 100 100 . 100 54 . . . . . 19 9 . . 61 . 77 100 100 100 100 100 100 Level 1 23 | . . . . . 31 29 10 12 . 18 29 53 26 90 20 27 22 . . . . . . Level 2 32 | . . . . . 13 70 89 30 100 35 51 37 30 9 14 72 . . . . . . . Level 3 10 | . . . . . . . . 56 . 45 . . 42 . 2 . . . . . . . . Level 4 . | . . . . . . . . . . . . . . . . . . . . . . . . Level 5 . | . . . . . . . . . . . . . . . . . . . . . . . . High Security . | . . . . . . . . . . . . . . . . . . . . . . . . Max Security . | . . . . . . . . . . . . . . . . . . . . . . . . Squads Dispatched 35 | . 1 . . 1 2 . 2 . . . . . 14 . 8 1 . . . 3 1 . 2 Investigation 7 | . . . . 1 1 . . . . . . . 1 . 1 1 . . . 1 1 . . Extermination 1 | . . . . . . . . . . . . . 1 . . . . . . . . . . Reinforcement 22 | . 1 . . . 1 . 2 . . . . . 8 . 6 . . . . 2 . . 2 Assault 5 | . . . . . . . . . . . . . 4 . 1 . . . . . . . . Garrison . | . . . . . . . . . . . . . . . . . . . . . . . . Intercept . | . . . . . . . . . . . . . . . . . . . . . . . . Searches Triggered . | . . . . . . . . . . . . . . . . . . . . . . . . Construction Impeded 1 | . . . . . . . . . . . . . 1 . . . . . . . . . . Haulers Reinforced 3 | . . . . . . . . . . . . . 3 . . . . . . . . . . Active Scanning Responses . | . . . . . . . . . . . . . . . . . . . . . . . . Cargo Convoy Interrupts . | . . . . . . . . . . . . . . . . . . . . . . . . Stealth | -11 -10 -10 -10 -9 -8 -8 -8 -8 -7 -7 -7 -7 -6 -5 -5 -5 -5 -4 -4 -3 -2 -2 -1 --------- Run | Scr Mat Min Exi Min Mat Gar Mat Gar Fac Gar Fac Gar Fac Fac Ext Cet Arc Fac DSF Res Res Gar Acc Distress Signals 8 | . . . . . 1 . . . . . . . 2 . 1 1 . . . 2 . . 1 Communications Jammed 96 | . . . . . 35 . 30 . . . . . 15 . 16 . . . . . . . . Distress Signals 94 | . . . . . 35 . 30 . . . . . 13 . 16 . . . . . . . . Times Spotted 393 | . 2 3 . . 29 14 26 14 . 27 5 32 55 1 77 20 22 . 2 30 3 15 16 Peak Tracking Total 16 | . 1 3 . . 5 7 4 7 . 4 3 6 7 2 10 10 16 . 1 13 2 16 8 Tactical Retreats 36 | . . . . . . 1 1 . . 5 . 8 6 2 3 1 . . 1 4 . . 4 Traps | -11 -10 -10 -10 -9 -8 -8 -8 -8 -7 -7 -7 -7 -6 -5 -5 -5 -5 -4 -4 -3 -2 -2 -1 ------- Run | Scr Mat Min Exi Min Mat Gar Mat Gar Fac Gar Fac Gar Fac Fac Ext Cet Arc Fac DSF Res Res Gar Acc Traps Triggered 12 | . . . . . . 2 . . . 1 . 1 3 . 1 . . 2 . 1 . 1 . Indirectly . | . . . . . . . . . . . . . . . . . . . . . . . . Trap Hack Attempts . | . . . . . . . . . . . . . . . . . . . . . . . . Triggered . | . . . . . . . . . . . . . . . . . . . . . . . . Disarmed . | . . . . . . . . . . . . . . . . . . . . . . . . Reprogrammed . | . . . . . . . . . . . . . . . . . . . . . . . . Reused . | . . . . . . . . . . . . . . . . . . . . . . . . Traps Extracted . | . . . . . . . . . . . . . . . . . . . . . . . . Installed . | . . . . . . . . . . . . . . . . . . . . . . . . Triggered . | . . . . . . . . . . . . . . . . . . . . . . . . Machines | -11 -10 -10 -10 -9 -8 -8 -8 -8 -7 -7 -7 -7 -6 -5 -5 -5 -5 -4 -4 -3 -2 -2 -1 ---------- Run | Scr Mat Min Exi Min Mat Gar Mat Gar Fac Gar Fac Gar Fac Fac Ext Cet Arc Fac DSF Res Res Gar Acc Machines Disabled 35 | . . . . . 3 . 1 4 . 1 2 6 10 . 6 2 . . . . . . . Max in Single Turn 4 | . . . . . 1 . 1 2 . 1 2 2 4 . 1 1 . . . . . . . Garrison Relay 3 | . . . . . . . . . . 1 . 2 . . . . . . . . . . . Phase Generator 1 | . . . . . . . . . . . . 1 . . . . . . . . . . . Machines Sabotaged . | . . . . . . . . . . . . . . . . . . . . . . . . Garrisons Compromised . | . . . . . . . . . . . . . . . . . . . . . . . . Overloaded Fab Kills . | . . . . . . . . . . . . . . . . . . . . . . . . Hacking | -11 -10 -10 -10 -9 -8 -8 -8 -8 -7 -7 -7 -7 -6 -5 -5 -5 -5 -4 -4 -3 -2 -2 -1 --------- Run | Scr Mat Min Exi Min Mat Gar Mat Gar Fac Gar Fac Gar Fac Fac Ext Cet Arc Fac DSF Res Res Gar Acc Machines Accessed 43 | . 1 1 2 1 9 . 4 . 1 . 6 . 3 1 4 4 1 2 . 1 2 . . Terminals 31 | . 1 . . . 7 . 2 . . . 5 . 3 1 4 4 . 2 . 1 1 . . Fabricators . | . . . . . . . . . . . . . . . . . . . . . . . . Repair Stations . | . . . . . . . . . . . . . . . . . . . . . . . . Recycling Units 1 | . . . . . . . 1 . . . . . . . . . . . . . . . . Scanalyzers 1 | . . . . . 1 . . . . . . . . . . . . . . . . . . Garrison Access 5 | . . . . . 1 . 1 . 1 . 1 . . . . . . . . . 1 . . Total Hacks 135 | . 1 1 24 1 24 . 7 . 1 . 11 . 5 2 10 11 25 3 . 4 5 . . Successful 98 | . 1 1 24 1 12 . 5 . 1 . 6 . 2 2 5 7 25 3 . 1 2 . . Failed 37 | . . . . . 12 . 2 . . . 5 . 3 . 5 4 . . . 3 3 . . Catastrophic 5 | . . . . . 2 . 1 . . . 1 . 1 . . . . . . . . . . Database Lockouts . | . . . . . . . . . . . . . . . . . . . . . . . . Manual 19 | . . . 1 . 10 . 4 . . . 1 . 3 . . . . . . . . . . Terminals 75 | . 1 . . . 20 . 5 . . . 10 . 5 2 10 11 . 3 . 4 4 . . Fabricators . | . . . . . . . . . . . . . . . . . . . . . . . . Repair Stations . | . . . . . . . . . . . . . . . . . . . . . . . . Recycling Units 1 | . . . . . . . 1 . . . . . . . . . . . . . . . . Scanalyzers 3 | . . . . . 3 . . . . . . . . . . . . . . . . . . Garrison Access 5 | . . . . . 1 . 1 . 1 . 1 . . . . . . . . . 1 . . Terminal Hacks 90 | . 1 1 24 1 9 . 4 . . . 5 . 1 2 5 7 25 3 . 1 1 . . Record 60 | . . . 23 . 1 . . . . . . . 1 . 3 6 25 1 . . . . . Robot Analysis 1 | . . . . . 1 . . . . . . . . . . . . . . . . . . Prototype ID Bank 1 | . . . . . . . 1 . . . . . . . . . . . . . . . . Open Door 4 | . . 1 . 1 . . . . . . . . . . 1 1 . . . . . . . Open DSF 3 | . . . . . . . . . . . 1 . . . . . . 1 . 1 . . . Branch Access Points 3 | . . . . . 1 . . . . . . . . . . . . 1 . . 1 . . Garrison Index 1 | . . . . . 1 . . . . . . . . . . . . . . . . . . Unreport Threat 2 | . . . . . 1 . . . . . 1 . . . . . . . . . . . . Locate Traps 1 | . . . . . . . . . . . 1 . . . . . . . . . . . . Transport Status 1 | . . . . . 1 . . . . . . . . . . . . . . . . . . Hauler Manifests 4 | . . . . . 2 . 1 . . . . . . 1 . . . . . . . . . Registered Components 1 | . 1 . . . . . . . . . . . . . . . . . . . . . . Zone Layout 7 | . . . . . 1 . 2 . . . 2 . . 1 1 . . . . . . . . EX-Prototype ID Bank 1 | . . . 1 . . . . . . . . . . . . . . . . . . . . Fabricator Hacks . | . . . . . . . . . . . . . . . . . . . . . . . . Repair Station Hacks . | . . . . . . . . . . . . . . . . . . . . . . . . Recycling Unit Hacks . | . . . . . . . . . . . . . . . . . . . . . . . . Scanalyzer 2 | . . . . . 2 . . . . . . . . . . . . . . . . . . Insert Component 1 | . . . . . 1 . . . . . . . . . . . . . . . . . . Analyze 1 | . . . . . 1 . . . . . . . . . . . . . . . . . . Garrison Access Hacks 5 | . . . . . 1 . 1 . 1 . 1 . . . . . . . . . 1 . . Unlock Access 5 | . . . . . 1 . 1 . 1 . 1 . . . . . . . . . 1 . . Unauthorized Hacks 1 | . . . . . . . . . . . . . 1 . . . . . . . . . . Terminals 1 | . . . . . . . . . . . . . 1 . . . . . . . . . . Sabotage 1 | . . . . . . . . . . . . . 1 . . . . . . . . . . Fabricators . | . . . . . . . . . . . . . . . . . . . . . . . . Repair Stations . | . . . . . . . . . . . . . . . . . . . . . . . . Recycling Units . | . . . . . . . . . . . . . . . . . . . . . . . . Scanalyzers . | . . . . . . . . . . . . . . . . . . . . . . . . Garrison Access . | . . . . . . . . . . . . . . . . . . . . . . . . Data Cores Recovered 1 | . . . . . . . . . . . 1 . . . . . . . . . . . . Used . | . . . . . . . . . . . . . . . . . . . . . . . . Hacking Detections 29 | . . . . . 6 . 4 . 1 . 5 . 3 1 4 2 . 1 . 1 1 . . Full Trace Events 5 | . . . . . 1 . . . . . . . . . 1 1 . . . 1 1 . . Feedback Events . | . . . . . . . . . . . . . . . . . . . . . . . . Feedback Blocked . | . . . . . . . . . . . . . . . . . . . . . . . . Robot Schematics Acquired . | . . . . . . . . . . . . . . . . . . . . . . . . Robots Built . | . . . . . . . . . . . . . . . . . . . . . . . . Authchips . | . . . . . . . . . . . . . . . . . . . . . . . . Time . | . . . . . . . . . . . . . . . . . . . . . . . . Total Robot Build Rating . | . . . . . . . . . . . . . . . . . . . . . . . . Part Schematics Acquired 1 | . . . . . 1 . . . . . . . . . . . . . . . . . . Parts Built . | . . . . . . . . . . . . . . . . . . . . . . . . Authchips . | . . . . . . . . . . . . . . . . . . . . . . . . Time . | . . . . . . . . . . . . . . . . . . . . . . . . Total Part Build Rating . | . . . . . . . . . . . . . . . . . . . . . . . . Parts Repaired . | . . . . . . . . . . . . . . . . . . . . . . . . Time . | . . . . . . . . . . . . . . . . . . . . . . . . Parts Recycled . | . . . . . . . . . . . . . . . . . . . . . . . . Recycled Matter . | . . . . . . . . . . . . . . . . . . . . . . . . Retrieved Matter . | . . . . . . . . . . . . . . . . . . . . . . . . Retrieved Components . | . . . . . . . . . . . . . . . . . . . . . . . . Parts Scanalyzed 1 | . . . . . 1 . . . . . . . . . . . . . . . . . . Part Schematics Acquired 1 | . . . . . 1 . . . . . . . . . . . . . . . . . . Parts Damaged . | . . . . . . . . . . . . . . . . . . . . . . . . Bothacking | -11 -10 -10 -10 -9 -8 -8 -8 -8 -7 -7 -7 -7 -6 -5 -5 -5 -5 -4 -4 -3 -2 -2 -1 ------------ Run | Scr Mat Min Exi Min Mat Gar Mat Gar Fac Gar Fac Gar Fac Fac Ext Cet Arc Fac DSF Res Res Gar Acc Used RIF Installer 5 | . . . . . . 1 . 1 . 1 . 1 . . . . . . . . . 1 . Hotswap 1 | . . . . . . . . . . . . . . . . . . . . . . 1 . Threat Obfuscator 1 | . . . . . . . . 1 . . . . . . . . . . . . . . . Alert ID Control 1 | . . . . . . . . . . . . 1 . . . . . . . . . . . Autooverride 1 | . . . . . . . . . . 1 . . . . . . . . . . . . . Robots Hacked 21 | . . . . . . . . . . . 2 11 5 . . . 3 . . . . . . Non-combat 5 | . . . . . . . . . . . . . 5 . . . . . . . . . . Combat 16 | . . . . . . . . . . . 2 11 . . . . 3 . . . . . . Autooverrided 1 | . . . . . . . . . . . . 1 . . . . . . . . . . . Robot Hacks Applied 22 | . . . . . . . . . . . 4 10 5 . . . 3 . . . . . . parse_system 4 | . . . . . . . . . . . 1 . . . . . 3 . . . . . . find_chute 1 | . . . . . . . . . . . . . 1 . . . . . . . . . . drop_inventory 2 | . . . . . . . . . . . . . 2 . . . . . . . . . . map_route 2 | . . . . . . . . . . . . . 2 . . . . . . . . . . find_shortcuts 1 | . . . . . . . . . . . . 1 . . . . . . . . . . . find_garrison 1 | . . . . . . . . . . . 1 . . . . . . . . . . . . overwrite_iff 6 | . . . . . . . . . . . 2 4 . . . . . . . . . . . formatsys_high 5 | . . . . . . . . . . . . 5 . . . . . . . . . . . Relay Couplers Released 11 | . . . . . . . . . . 3 . 8 . . . . . . . . . . . Machine Destruction 11 | . . . . . . . . . . 3 . 8 . . . . . . . . . . . Attached 6 | . . . . . . . . . . 1 . 3 2 . . . . . . . . . . Fabnet Peak Effective % . | . . . . . . . . . . . . . . . . . . . . . . . . Robots Rewired 18 | . . . . . . . . . . . . . . . 18 . . . . . . . . Allies Hacked . | . . . . . . . . . . . . . . . . . . . . . . . . Hacks Repelled . | . . . . . . . . . . . . . . . . . . . . . . . . Allies | -11 -10 -10 -10 -9 -8 -8 -8 -8 -7 -7 -7 -7 -6 -5 -5 -5 -5 -4 -4 -3 -2 -2 -1 -------- Run | Scr Mat Min Exi Min Mat Gar Mat Gar Fac Gar Fac Gar Fac Fac Ext Cet Arc Fac DSF Res Res Gar Acc Total Allies 37 | . . 3 . . . . . . . . 2 10 . . 22 . . . . . . . . Largest Group 11 | . . 3 3 3 3 . . . . . 1 4 . . 11 5 . . . . . . . Highest-Rated Group 320 | . . 40 40 40 40 . . . . . 16 52 . . 320 151 . . . . . . . Highest-Rated Ally 39 | . . 16 16 16 16 . . . . . 16 16 . . 39 39 . . . . . . . Total Orders . | . . . . . . . . . . . . . . . . . . . . . . . . Ally Attacks 168 | . . . . . 28 . . . . . 4 20 . . 100 16 . . . . . . . Total Damage 3069 | . . . . . 278 . . . . . 47 251 . . 2218 275 . . . . . . . Kills 24 | . . . . . 2 . . . . . . 2 . . 20 . . . . . . . . Allies Corrupted 1 | . . . . . . . . . . . . . . . 1 . . . . . . . . Allies Melted . | . . . . . . . . . . . . . . . . . . . . . . . . Intel | -11 -10 -10 -10 -9 -8 -8 -8 -8 -7 -7 -7 -7 -6 -5 -5 -5 -5 -4 -4 -3 -2 -2 -1 ------- Run | Scr Mat Min Exi Min Mat Gar Mat Gar Fac Gar Fac Gar Fac Fac Ext Cet Arc Fac DSF Res Res Gar Acc Robot Analysis Total 1 | . . . . . 1 . . . . . . . . . . . . . . . . . . Derelict Logs Recovered 3 | . . 2 . 1 . . . . . . . . . . . . . . . . . . . Drone Launches . | . . . . . . . . . . . . . . . . . . . . . . . . Drone Recoveries . | . . . . . . . . . . . . . . . . . . . . . . . . Exploration | -11 -10 -10 -10 -9 -8 -8 -8 -8 -7 -7 -7 -7 -6 -5 -5 -5 -5 -4 -4 -3 -2 -2 -1 ------------- Run | Scr Mat Min Exi Min Mat Gar Mat Gar Fac Gar Fac Gar Fac Fac Ext Cet Arc Fac DSF Res Res Gar Acc Turns Passed 11824 | 45 110 340 354 162 1415 247 960 242 113 858 780 1219 1404 133 1716 587 161 121 67 253 43 49 445 Spaces Moved 8859 | 33 81 274 300 159 1029 218 634 157 109 518 579 751 708 230 712 270 122 151 96 663 102 91 872 Core 1103 | 4 . . . . . . . . . . . . 14 90 1 . 69 9 . . . 44 872 Treads 966 | . . . . . . . . . . . . . . . 642 270 53 1 . . . . . Legs 5540 | 29 81 274 300 159 1029 218 634 157 109 518 579 751 694 . 8 . . . . . . . . Wheels . | . . . . . . . . . . . . . . . . . . . . . . . . Hover 201 | . . . . . . . . . . . . . . 140 61 . . . . . . . . Flight 1049 | . . . . . . . . . . . . . . . . . . 141 96 663 102 47 . Fastest Speed 33 | 50 120 120 90 90 45 45 100 100 100 60 123 126 50 50 60 160 50 42 35 33 37 42 50 Average Speed 99 | 111 120 120 109 90 93 76 100 100 100 110 125 126 139 56 151 160 98 53 42 33 41 46 50 Slowest Speed 240 | 120 120 120 120 90 100 100 103 100 100 123 126 200 190 60 190 160 240 145 142 40 42 50 50 Overloaded Moves 146 | . . . . . 6 123 . . . 17 . . . . . . . . . . . . . Propulsion Burnouts . | . . . . . . . . . . . . . . . . . . . . . . . . Robots Hopped 2 | . . . . . . . . . . . . . . . . . . . . 2 . . . Cave-ins Triggered 1 | . . . . . . . . . . . . . . . . 1 . . . . . . . Exploration Rate (%) 43 | 4 20 61 69 44 78 40 57 43 3 62 15 82 28 6 72 83 91 5 88 21 3 39 30 Regions Visited 23 Branch Regions 6 Pre-discovered Areas 1 | . . . 1 . . . . . . . . . . . . . . . . . . . . Known Exits Taken 7 | . . . 1 . 1 . 1 . 1 . 1 . . . . . . 1 . . 1 . . Unknown Exits Taken 10 | 1 1 1 . 1 . . . . . . . . 1 1 1 1 1 . . 1 . . . Scrap Searched 2 | . . 1 . 1 . . . . . . . . . . . . . . . . . . . Spaces Dug 8 | . . . . . 4 . . . . . 2 . 2 . . . . . . . . . . Terrain Destroyed 552 | . . 17 . . 71 14 30 15 . 15 47 99 158 . 38 28 20 . . . . . . Melee . | . . . . . . . . . . . . . . . . . . . . . . . . Projectile 141 | . . . . . 52 . 3 1 . 5 6 14 18 . 32 7 3 . . . . . . AOE 409 | . . 17 . . 19 14 26 14 . 10 41 85 140 . 5 21 17 . . . . . . Terrain Rammed . | . . . . . . . . . . . . . . . . . . . . . . . . Walls Destroyed . | . . . . . . . . . . . . . . . . . . . . . . . . Machines Disabled . | . . . . . . . . . . . . . . . . . . . . . . . . Actions | -11 -10 -10 -10 -9 -8 -8 -8 -8 -7 -7 -7 -7 -6 -5 -5 -5 -5 -4 -4 -3 -2 -2 -1 --------- Run | Scr Mat Min Exi Min Mat Gar Mat Gar Fac Gar Fac Gar Fac Fac Ext Cet Arc Fac DSF Res Res Gar Acc Total 10697 | 38 88 280 324 177 1293 255 807 197 112 672 615 920 966 233 1136 367 145 183 119 690 102 97 881 Wait 413 | . . . 21 11 100 . 14 7 . 31 6 53 78 . 37 37 1 . . 13 . . 4 Move 8838 | 32 80 273 299 158 1029 217 634 156 109 517 579 750 707 229 711 269 121 150 95 659 102 90 872 Hop 1 | . . . . . . . . . . . . . . . . . . . . 1 . . . Pick Up 95 | . 2 1 . 1 16 1 22 . . 10 3 11 7 . 16 . . 1 4 . . . . Fast Attach 125 | 6 1 . . 1 9 1 11 1 2 5 1 6 21 1 27 5 . 9 13 5 . . . Attach 55 | . 1 . . . 4 5 3 . . 5 2 5 8 3 4 5 6 1 . 3 . . . Detach 42 | . 1 . . 2 7 . 5 . . 2 1 5 3 . 3 5 . . 2 6 . . . Swap 110 | . . 2 2 2 17 4 5 4 . 9 6 9 22 . 27 1 . . . . . . . Drop 134 | . . . 2 1 16 1 30 . 1 16 4 11 17 . 25 2 . . 5 2 . 1 . Fire 668 | . 3 4 . . 95 22 83 29 . 71 13 63 99 . 124 43 17 1 . 1 . . . Melee . | . . . . . . . . . . . . . . . . . . . . . . . . Ram 5 | . . . . . . . . . . . . . . . . . . . . . . . 5 Kick 12 | . . . . 1 . . . . . . . 7 4 . . . . . . . . . . Crush 1 | . . . . . . . . . . . . . . . 1 . . . . . . . . Escape Stasis 49 | . . . . . . 4 . . . 5 . . . . 13 . . 21 . . . 6 . Rewire 149 | . . . . . . . . . . 1 . . . . 148 . . . . . . . . Trap . | . . . . . . . . . . . . . . . . . . . . . . . . Miscellaneous . | . . . . . . . . . . . . . . . . . . . . . . . . Route ------- -11/Scrapyard -10/Materials -10/Mines (discovered 2 exits: [*Mat] / *Exi) -10/Exiles (discovered 2 exits: *Min x2) -9/Mines -8/Materials (discovered 3 exits: *Fac x2 / Gar) -8/Garrison (discovered 2 exits: *Mat x2) -8/Materials (discovered 3 exits: *Fac x2 / Gar) -8/Garrison -7/Factory -7/Garrison (discovered 3 exits: *Fac x3) -7/Factory (discovered 2 exits: *Fac / Gar) -7/Garrison (discovered 3 exits: *Fac x3) -6/Factory (discovered 2 exits: *Fac / [*Low]) -5/Factory -5/Extension (discovered 2 exits: *Fac / *Cet) -5/Cetus -5/Archives (discovered 2 exits: *Fac / [*Hub]) -4/Factory (discovered 4 exits: Upp x2 / Arm / DSF) -4/DSF -3/Research -2/Research (discovered 3 exits: Qua x2 / Gar) -2/Garrison -1/Access History --------- Turn | Location | Event 3 | -11/Scrapyard | Discovered new exit (range 15) 46 | -11/Scrapyard | Entered Materials 77 | -10/Materials | Discovered new exit (range 16) 156 | -10/Materials | Entered Mines 307 | -10/Mines | Build established: Mutant 380 | -10/Mines | Discovered new exit (range 12) 394 | -10/Mines | Met a Derelict who couldn't figure out how to use a Trap Extractor 401 | -10/Mines | Learned Materials terminal intel 417 | -10/Mines | Assisted by bots powering up and referring to "LRC-V3" 484 | -10/Mines | Deemed a non-threat by the Exiles lab entrance 485 | -10/Mines | Discovered new exit (range 5) 496 | -10/Mines | Entered Exiles 496 | -10/Exiles | Accompanied by 3 allies 497 | -10/Exiles | Identified exit to Mines 525 | -10/Exiles | Met 8R-AWN 546 | -10/Exiles | Met EX-HEX 578 | -10/Exiles | Met EX-BIN 591 | -10/Exiles | Met EX-DEC 603 | -10/Exiles | Learned location of Zion (-7) 693 | -10/Exiles | Aligned with FarCom system 694 | -10/Exiles | Given EX-Vault access code 723 | -10/Exiles | Opened EX-Vault 732 | -10/Exiles | Found Potential Leg 734 | -10/Exiles | Found Potential Leg 757 | -10/Exiles | Warned to stay clear of 0b10 Research branches 850 | -10/Exiles | Left Exiles lab with Potential Leg 850 | -10/Exiles | Entered Mines 850 | -9/Mines | Accompanied by 3 allies 856 | -9/Mines | Met a Derelict shopkeep closing up shop 880 | -9/Mines | Learned Materials emergency access door positions 995 | -9/Mines | Discovered new exit (range 7) 1012 | -9/Mines | Entered Materials 1012 | -8/Materials | Accompanied by 3 allies 1012 | -8/Materials | Evolved 4 slots: Propulsion x1, Utility x3 1014 | -8/Materials | Loaded intel: 11 terminal locations 1763 | -8/Materials | Discovered new exit (range 16) 2007 | -8/Materials | Discovered new exit (range 4) 2427 | -8/Materials | Identified exit to Garrison 2427 | -8/Materials | Entered Garrison 2470 | -8/Garrison | Triggered checkpoint 2499 | -8/Garrison | Lost 4 parts (1p3u) 2518 | -8/Garrison | Discovered new exit (range 10) 2580 | -8/Garrison | Core integrity fell below 50% 2615 | -8/Garrison | Destroyed 9 combat bots 2657 | -8/Garrison | Discovered new exit (range 8) 2670 | -8/Garrison | Installed Relay Interface Framework 2674 | -8/Garrison | Entered Materials 2919 | -8/Materials | Discovered new exit (range 3) 3535 | -8/Materials | Discovered new exit (range 16) 3634 | -8/Materials | Identified exit to Garrison 3634 | -8/Materials | Entered Garrison 3665 | -8/Garrison | Triggered checkpoint 3677 | -8/Garrison | Triggered checkpoint 3687 | -8/Garrison | Triggered checkpoint 3700 | -8/Garrison | Destroyed 8 combat bots 3737 | -8/Garrison | Triggered checkpoint 3774 | -8/Garrison | Destroyed 7 combat bots 3847 | -8/Garrison | Discovered new exit (range 9) 3861 | -8/Garrison | Expanded RIF knowledge: Threat Obfuscation 3876 | -8/Garrison | Entered Factory 3876 | -7/Factory | Evolved 2 slots: Utility x2 3989 | -7/Factory | Identified exit to Garrison 3989 | -7/Factory | Entered Garrison 4025 | -7/Garrison | Triggered checkpoint 4064 | -7/Garrison | Triggered checkpoint 4221 | -7/Garrison | Triggered checkpoint 4248 | -7/Garrison | Triggered checkpoint 4304 | -7/Garrison | Triggered checkpoint 4401 | -7/Garrison | Triggered checkpoint 4438 | -7/Garrison | Triggered checkpoint 4478 | -7/Garrison | Garrison Relay disabled 4522 | -7/Garrison | Discovered new exit (range 14) 4663 | -7/Garrison | Discovered new exit (range 14) 4765 | -7/Garrison | Build established: Scavenger-Mutant 4797 | -7/Garrison | Discovered new exit (range 14) 4819 | -7/Garrison | Expanded RIF knowledge: Autooverride 4847 | -7/Garrison | Entered Factory 5554 | -7/Factory | Discovered new exit (range 11) 5627 | -7/Factory | Identified exit to Garrison 5627 | -7/Factory | Entered Garrison 5694 | -7/Garrison | Triggered checkpoint 5862 | -7/Garrison | Triggered checkpoint 5912 | -7/Garrison | Garrison Relay disabled 6042 | -7/Garrison | Triggered checkpoint 6072 | -7/Garrison | Triggered checkpoint 6145 | -7/Garrison | Triggered checkpoint 6240 | -7/Garrison | Discovered new exit (range 15) 6347 | -7/Garrison | Discovered new exit (range 8) 6427 | -7/Garrison | Discovered new exit (range 10) 6444 | -7/Garrison | Expanded RIF knowledge: Alert ID Control 6520 | -7/Garrison | Phase Generator disabled 6570 | -7/Garrison | Triggered checkpoint 6645 | -7/Garrison | Garrison Relay disabled 6846 | -7/Garrison | Entered Factory 6846 | -6/Factory | Evolved 2 slots: Propulsion x1, Utility x1 7196 | -6/Factory | First assault squad dispatched 7254 | -6/Factory | Discovered new exit (range 12) 7418 | -6/Factory | Lost 4 parts (1n3u) 7661 | -6/Factory | Destroyed 8 combat bots 7692 | -6/Factory | Destroyed 7 combat bots 7960 | -6/Factory | Build established: Mutant 8091 | -6/Factory | Lost 5 parts (1n1u3w) 8136 | -6/Factory | System corruption reached 10% 8244 | -6/Factory | Released all parts (8) 8248 | -6/Factory | Discovered new exit (range 5) 8250 | -6/Factory | Entered another Factory area 8250 | -5/Factory | Evolved 2 slots: Utility x1, Weapon x1 8353 | -5/Factory | Discovered new exit (range 12) 8383 | -5/Factory | Entered Extension 8522 | -5/Extension | Lost 5 parts (2n2u1w) 8829 | -5/Extension | Build established: Scavenger-Skirmisher 9084 | -5/Extension | Allied Derelicts emerged from ambush trap array 9211 | -5/Extension | Spotted B-75 Beast 9233 | -5/Extension | Disrupted transfer network 9260 | -5/Extension | Destroyed B-75 Beast 9271 | -5/Extension | Spotted B-75 Beast 9300 | -5/Extension | Destroyed B-75 Beast 9328 | -5/Extension | Lost 4 parts (1p1n1u1w) 9342 | -5/Extension | Destroyed 7 combat bots 9811 | -5/Extension | Rescued a captive Derelict 9883 | -5/Extension | First assault squad dispatched 10043 | -5/Extension | Discovered new exit (range 10) 10044 | -5/Extension | Discovered new exit (range 6) 10054 | -5/Extension | Disrupted transfer network 10099 | -5/Extension | Entered Cetus 10099 | -5/Cetus | Accompanied by 5 allies 10128 | -5/Cetus | Spotted Cetus Guard 10131 | -5/Cetus | Spotted Cetus Guard 10133 | -5/Cetus | Spotted Cetus Guard 10141 | -5/Cetus | Spotted Cetus Guard 10147 | -5/Cetus | Destroyed Cetus Guard 10155 | -5/Cetus | Destroyed Cetus Guard 10161 | -5/Cetus | Destroyed Cetus Guard 10163 | -5/Cetus | Destroyed Cetus Guard 10189 | -5/Cetus | Lost 3 parts (1n1u1w) 10472 | -5/Cetus | Build established: Scavenger-Tank 10528 | -5/Cetus | Found a strange terminal 10586 | -5/Cetus | Discovered new exit (range 16) 10621 | -5/Cetus | Spotted Cetus Guard 10622 | -5/Cetus | Spotted Cetus Guard 10625 | -5/Cetus | Spotted Cetus Guard 10632 | -5/Cetus | Spotted Cetus Guard 10669 | -5/Cetus | Crushed by falling debris 10669 | -5/Cetus | Core integrity fell below 50% 10686 | -5/Cetus | Entered Archives 10701 | -5/Archives | Lost 8 parts (1p2n3u2w) 10718 | -5/Archives | Met Zhirov 10724 | -5/Archives | Reinforcements dispatched to Archives 10739 | -5/Archives | Read partially decrypted archive contents 10769 | -5/Archives | Reinforcements dispatched to Archives 10771 | -5/Archives | Zhirov warped through subspace 10773 | -5/Archives | Discovered new exit (range 14) 10789 | -5/Archives | Zhirov detonated Archives 10790 | -5/Archives | Core integrity fell below 20% 10813 | -5/Archives | Released all parts (5) 10818 | -5/Archives | Discovered new exit (range 14) 10836 | -5/Archives | Lost 10 parts (1p2n2u5w) 10847 | -5/Archives | Entered Factory 10847 | -4/Factory | Evolved 2 slots: Propulsion x1, Utility x1 10881 | -4/Factory | Identified exit to Upper Caves 10881 | -4/Factory | Identified exit to Armory 10911 | -4/Factory | Identified exit to DSF 10968 | -4/Factory | Entered DSF 10998 | -4/DSF | Additional patrols routed to DSF 11021 | -4/DSF | Discovered new exit (range 15) 11035 | -4/DSF | Entered Research 11035 | -3/Research | Evolved 2 slots: Propulsion x2 11057 | -3/Research | Lost 6 parts (1p3u2w) 11285 | -3/Research | Discovered new exit (range 10) 11288 | -3/Research | Entered another Research area 11288 | -2/Research | Evolved 2 slots: Propulsion x1, Utility x1 11319 | -2/Research | Lost 3 parts (1p1n1w) 11322 | -2/Research | Identified exit to Quarantine 11331 | -2/Research | Identified exit to Garrison 11331 | -2/Research | Entered Garrison 11334 | -2/Garrison | Expanded RIF knowledge: Hotswap 11357 | -2/Garrison | Triggered checkpoint 11358 | -2/Garrison | Released all parts (6) 11374 | -2/Garrison | Discovered new exit (range 12) 11380 | -2/Garrison | Core integrity fell below 50% 11380 | -2/Garrison | Entered Access 11380 | -1/Access | Evolved 2 slots: Utility x2 11389 | -1/Access | Lost 6 parts (3n3u) 11632 | -1/Access | Build established: Mutant 11740 | -1/Access | Core integrity fell below 50% 11748 | -1/Access | Core integrity fell below 20% 11825 | -1/Access | Destroyed by P-80 Master with Gamma Rifle Last Messages --------------- reinforcements to area. 11741_ Knocked back. 11742_ Penetrated by Slug. 11742_ Slug penetrates Wall. 11744_ Acquired 28 matter. 11744_ Penetrated by Slug. 11745_ Slammed into H-88 Terminator. 11745_ H-88 Terminator knocked back. 11745_ Slug penetrates Wall. 11747_ Penetrated by Slug. 11747_ Slug penetrates Wall. 11748_ Slammed into U-05 Engineer. 11780_ K-01 Serf cleans the Sealed Freight Elevator. 11787_ Slug penetrates A-15 Conveyor. 11788_ Acquired 11 matter. 11816_ W-44 Eye sends out distress signal. 11818_ System corrupted: Matter fused (-7). [Achievement: 20k Club] [Achievement: This Is Interesting...] [Achievement: Achiever] Map ----- +----------------------------------------------------+ | ??????????# #?????????? | | ??????????# #?????????? | | ??????????# #?????????? | | ??????????###############/"##### #?????????? | | ??????????????????# # #?????????? | | ??????????????????# # ? #?????????? | | ??????????????????# "" +???? +?????????? | | ??????????????????# p "" #????? #?????????? | | ??????????????????# ] Y" #?????????????????? | | ??????????????????# p "" #?????????????????? | | ??????????????????# "" #?????????????????? | | ??????????????????# #?????????????????? | | ??????????????????# #?????????????????? | | ??????????????????+ w #?????????????????? | | ??????????????????# #?????????????????? | | ??????????????????# p #?????????????????? | | ??????????????????#######/######?????????????????? | | ????????????????????????# #??????????????????????? | | ????????????????????????# #??????????????????????? | | ????????????????????????# #??????????????????????? | | ???????????????ss???????# #??????????????????????? | | ???????????????s????????# #??????????????????????? | | ???????????????s????????# #??????????????????????? | | ????????????????????????# #??????????????????????? | | ????????????????????????# #??????????????????????? | | ????????????????????????#@#??????????????????????? | | ????????????????????????# #??????????????????????? | | ????????????????????????# #??????????????????????? | | ??????????p?????s??????? ??????????????????????? | | ????????????????????????#+#??????????????????????? | | ?????????????????????????????????????????????????? | | ?????????????????????????????????????????????????? | | ?????????????????????????????????????????????????? | | ?????????????????????????????????????????????????? | | ?????????????????????????????????????????????????? | | ?????????????????????????????????????????????????? | | ?????????????????????????????????????????????????? | | ?????????????????????????????????????????????????? | | ?????????????????????????????????????????????????? | | ?????????????????????????????????????????????????? | | ?????????????????????????????????????????????????? | | ?????????????????????????????????????????????????? | | ?????????????????????????????????????????????????? | | ?????????????????????????????????????????????????? | | ?????????????????????????????????????????????????? | | ?????????????????????????????????????????????????? | | ?????????????????????????????????????????????????? | | ?????????????????????????????????????????????????? | | ?????????????????????????????????????????????????? | | ?????????????????????????????????????????????????? | +----------------------------------------------------+ Best States ------------- Heat Dissipation 168 Energy Generation 39 Energy Capacity 365 Matter Stores 450 Matter Capacity 450 Sight Range 22 Robot Scan Range 18 Terrain Scan Range 16 Terrain Scan Density 10 ECM Strength 2 Jamming Range 12 Cloak Strength 3 Power Amplification 90 EM Shielding 2 Armor Coverage 675 Resistance: TH 15 Core Shielding 20 Propulsion Shielding 66 Utility Shielding 33 Weapon Shielding 66 Weapon Cycling 20 Evasion (%) 63 Targeting Accuracy 8 Target Analysis 5 Recoil Reduction 4 Particle Charging 20 Force Boost 20 Salvage Targeting 4 Offensive Hacking 10 Defensive Hacking 10 Relay Coupler Types 1 Relay Coupler Value 42 Authchip Count 2 Item Schematics ----------------- Transmission Jammer | -8/Materials | Scanalyzed Robot Schematics ------------------ None Fabricated ------------ Nothing Alien Tech Used ----------------- None Achievements -------------- 20k Club Achiever Assimilation Complete Backstab Collateral Damage Dangerous Findings Denied? Dramatic Entrance Infiltrator No Signal Oh No You Don't! Remodeling Respectable Loadout Shopping List Streaker The More The Merrier This Is Interesting... Total Silence Unlikely Earthworm Challenges ------------ None Game ------ Seed BarrageAutogunRegenerator Manual? 0 Play Time 03:01:20 Cumulative 12.7 hours Start 2022.03.24 @ 11:35:12 End 2022.03.24 @ 20:27:34 Sessions 5 Manual Loads 0 Difficulty Rogue Special Mode None Game No. 7 Rogue 7 Adventurer 0 Explorer 0 Win Type - Total 0 Types 0/0/0/0/0/0/0/0/0 Lore% 28 Gallery% 23 Achievement% 25 Wizard Run 0 Options --------- ASCII 0 Keyboard 1 Movement Vi Keybinds 0 Fullscreen 2 Font 18/Terminus Map View 76x50 Tactical HUD 1 Map Filters NONE Filters NONE Steam 1 RUN: 863fbd1e-ad6d-48d4-850c-473c726db1a2